bitfinex/quotes_ETHUSD_20241024
["timestamp","ask_amount","ask_price","bid_price","bid_amount"]
[1729800630378,3.94618,2534.1,2533.7,5.56171124]
[1729800631259,3.94618,2534.1,2533.8,1.61492124]
[1729800631662,3.94618,2534.1,2533.7,5.56171124]
[1729800632045,3.94618,2534.1,2533.8,1.61492124]
[1729800632253,3.94589,2534.3,2533.9,1.61492124]
[1729800632581,3.94532,2534.7,2534.2,1.61492124]
[1729800632741,4.33952,2534.9,2534.5,1.61492124]
[1729800632944,3.94519,2534.8,2534.3,4.77213]
[1729800633140,4.02281395,2534.8,2534.3,8.7179]
[1729800633778,4.02281395,2534.8,2534.4,1.61492124]
[1729800633976,0.07762395,2534.8,2534.6,1.61492124]
[1729800634187,0.07762395,2534.8,2534.5,1.61492124]
[1729800634388,3.94488,2535.0,2534.4,4.97897212]
[1729800634389,3.94488,2535.0,2534.6,3.94538]
[1729800634555,0.07475868,2534.7,2534.6,3.94538]
[1729800634880,7.89006,2534.9,2534.4,4.97898212]
[1729800635182,0.07482758,2534.8,2534.4,4.97898212]
[1729800636480,4.01991758,2534.8,2534.4,4.97898212]
[1729800637645,3.94532,2534.7,2534.2,3.94593]
[1729800637842,3.94532,2534.7,2534.3,3.94579]
[1729800637843,4.01960779,2534.7,2534.3,3.94579]
[1729800638244,7.96496779,2534.7,2534.2,3.94593]
[1729800638444,4.01960779,2534.7,2534.3,3.94578]
[1729800639867,0.07428779,2534.7,2534.3,3.94578]
[1729800640071,3.9451,2534.8,2534.4,0.394578]
[1729800640273,0.07421889,2534.6,2534.4,4.340248]
[1729800640475,3.9451,2534.8,2534.4,4.340248]
[1729800640659,0.07414999,2534.5,2534.4,4.340248]
[1729800640860,3.9451,2534.8,2534.4,4.340248]
[1729800641083,0.07415832,2534.5,2534.4,4.340248]
[1729800641546,3.9451,2534.8,2534.4,0.394578]
[1729800641752,3.9451,2534.8,2534.3,3.94577]
[1729800641948,0.07432385,2534.7,2534.3,3.94577]
[1729800642259,3.9451,2534.8,2534.3,3.94577]
[1729800642460,0.07425495,2534.6,2534.3,3.94577]
[1729800642667,3.94526,2534.7,2534.3,3.94577]
[1729800642868,0.07418605,2534.5,2534.3,3.94577]
[1729800643089,3.94526,2534.7,2534.3,4.810543]
[1729800643342,0.07411714,2534.4,2534.3,4.810543]
[1729800643478,3.94539,2534.6,2534.3,0.864773]
[1729800643658,0.07411714,2534.4,2534.0,3.94624]
[1729800643988,0.07427312,2534.3,2534.0,3.94624]
[1729800644189,3.94562,2534.5,2534.0,3.94624]
[1729800644386,0.07422485,2534.2,2534.1,3.94612]
[1729800644592,3.94562,2534.5,2534.1,3.94612]
[1729800644781,0.07424874,2534.2,2534.0,3.94624]
[1729800644980,3.94562,2534.5,2534.1,3.94617]
[1729800645293,3.94509,2534.8,2534.3,3.94573]
[1729800645495,3.94509,2534.8,2534.4,3.94567]
[1729800646854,3.94481,2535.0,2534.3,0.8004]
[1729800646855,3.94481,2535.0,2534.5,3.94548]
[1729800647087,3.94495,2534.9,2534.5,3.94548]
[1729800647288,3.94495,2534.9,2534.4,3.94568]
[1729800647475,3.945,2534.9,2534.4,5.0896785]
[1729800648662,0.07461987,2534.8,2534.4,5.0896785]
[1729800650610,0.07461987,2534.8,2534.0,3.94631]
[1729800650611,3.9457,2534.5,2534.0,3.94631]
[1729800650761,3.94577,2534.4,2534.0,3.94631]
[1729800650989,0.0743071,2534.3,2534.0,3.94631]
[1729800651228,0.0743071,2534.3,2533.9,0.7563]
[1729800651229,3.94612,2534.2,2533.9,0.7563]
[1729800651414,4.02045407,2534.2,2533.9,0.7563]
[1729800652521,0.07434407,2534.2,2533.9,0.7563]
[1729800652720,4.02036407,2534.2,2533.7,4.70296]
[1729800652939,3.94602,2534.2,2533.7,4.70296]
[1729800653149,4.02038649,2534.1,2533.7,0.7563]
[1729800653739,4.02038649,2534.1,2533.7,4.70302]
[1729800654325,0.07413649,2534.1,2533.8,3.94662]
[1729800654511,0.07413649,2534.1,2533.9,3.94646]
[1729800654897,3.94587,2534.3,2533.8,4.811584]
[1729800655103,0.0738835,2534.0,2533.8,4.811584]
[1729800655302,3.94587,2534.3,2533.8,4.811584]
[1729800655499,0.07355342,2533.9,2533.8,8.758134]
[1729800655735,7.89181,2534.3,2533.8,4.811514]
[1729800655941,0.07355342,2533.9,2533.8,3.94655]
[1729800656135,7.89181,2534.3,2533.8,3.94655]
[1729800656336,0.07355342,2533.9,2533.8,3.94655]
[1729800656645,3.94587,2534.3,2533.8,3.94655]
[1729800656839,0.07355342,2533.9,2533.8,3.94655]
[1729800657008,7.89182,2534.3,2533.8,5.1395195]
[1729800657340,0.07355342,2533.9,2533.7,3.94672]
[1729800657642,0.07348448,2533.8,2533.7,3.94672]
[1729800657842,3.94623,2534.1,2533.7,3.94672]
[1729800658146,0.07348448,2533.8,2533.7,3.94672]
[1729800658305,3.94586,2534.3,2533.8,3.94662]
[1729800658542,0.07373461,2534.2,2533.8,3.94662]
[1729800658778,3.94586,2534.3,2533.8,3.94662]
[1729800658947,4.01983461,2534.2,2533.7,3.94672]
[1729800659964,3.9462,2534.1,2533.7,3.94672]
[1729800660164,0.07278711,2534.0,2533.7,3.94672]
[1729800660874,0.07278711,2534.0,2533.5,4.73319]
[1729800661085,0.07278711,2534.0,2533.5,0.7861]
[1729800661290,4.01920711,2534.0,2533.6,3.94681]
[1729800662395,0.07278711,2534.0,2533.6,7.89365]
[1729800662583,0.07278711,2534.0,2533.6,4.814785]
[1729800662788,0.07278711,2534.0,2533.7,3.94679]
[1729800666971,4.01911711,2534.0,2533.6,4.814915]
[1729800667174,0.07278711,2534.0,2533.6,8.761755]
[1729800667483,0.07278711,2534.0,2533.7,3.94679]
[1729800667889,3.13049852,2534.1,2533.7,3.94679]
[1729800668089,0.0707581,2533.9,2533.7,3.94679]
[1729800668291,3.13049852,2534.1,2533.7,3.94679]
[1729800668477,0.07068915,2533.8,2533.7,4.9015605]
[1729800668676,3.13049852,2534.1,2533.7,4.9015605]
[1729800668994,3.13049852,2534.1,2533.8,0.8048]
[1729800669777,3.13049852,2534.1,2533.6,8.64471]
[1729800670192,3.13049852,2534.1,2533.7,3.94677]
[1729800670393,3.13049852,2534.1,2533.7,5.56252389]
[1729800670597,4.56390758,2534.2,2533.8,5.56232389]
[1729800671181,0.61788758,2534.2,2533.8,1.61575389]
[1729800671381,0.07089598,2534.1,2533.9,3.94646]
[1729800671601,0.07089598,2534.1,2534.0,0.7849]
[1729800672219,3.94586,2534.3,2534.0,0.7849]
[1729800672421,0.07109511,2534.1,2534.0,0.7849]
[1729800672624,3.94586,2534.3,2534.0,0.7849]
[1729800672789,0.07091578,2534.1,2534.0,0.7849]
[1729800672991,3.94586,2534.3,2534.0,0.7849]
[1729800673286,0.07098471,2534.2,2534.0,0.7849]
[1729800673487,3.94586,2534.3,2534.0,0.7849]
[1729800673734,0.07109511,2534.1,2534.0,0.7849]
[1729800673919,7.89181,2534.3,2534.0,0.7849]
[1729800674106,0.07091578,2534.1,2534.0,0.7849]
[1729800674305,3.94586,2534.3,2534.0,0.7849]
[1729800674497,0.07091578,2534.1,2534.0,0.7849]
[1729800674696,3.94586,2534.3,2533.8,5.56235389]
[1729800675012,3.94586,2534.3,2533.8,6.34725389]
[1729800675013,0.07095909,2534.2,2533.8,6.34725389]
[1729800675326,3.94594,2534.3,2533.9,3.94647]
[1729800675528,0.07089016,2534.1,2533.9,3.94647]
[1729800675713,3.94594,2534.3,2533.9,3.94647]
[1729800675913,0.07082122,2534.0,2533.8,6.34725389]
[1729800676096,3.94609,2534.2,2533.8,6.34725389]
[1729800676618,0.07090764,2534.1,2533.8,4.7315]
[1729800677526,0.07090764,2534.1,2533.8,6.34725389]
[1729800678471,3.94609,2534.2,2533.8,6.34725389]
[1729800678839,0.06951662,2534.1,2533.8,6.34725389]
[1729800679021,0.06951662,2534.1,2533.8,2.40065389]
[1729800679222,0.06951662,2534.1,2533.9,3.94642]
[1729800679425,3.94589,2534.3,2533.9,3.94642]
[1729800679641,0.06944768,2534.0,2533.9,3.94642]
[1729800679833,3.94589,2534.3,2533.9,3.94642]
[1729800680047,0.06944768,2534.0,2533.9,3.94642]
[1729800680251,3.94589,2534.3,2533.9,3.94642]
[1729800680658,0.06958556,2534.2,2533.9,3.94642]
[1729800680867,3.94589,2534.3,2533.9,3.94642]
[1729800681023,0.06951662,2534.1,2533.9,3.94642]
[1729800681224,3.94554,2534.6,2534.0,1.61575389]
[1729800681560,3.94547,2534.6,2534.2,5.56174389]
[1729800681723,0.06755549,2534.5,2534.2,5.56174389]
[1729800682665,4.01311549,2534.5,2534.2,1.61575389]
[1729800683167,4.01311549,2534.5,2534.1,6.34850389]
[1729800683663,4.01311549,2534.5,2534.2,1.61575389]
[1729800684257,0.06755549,2534.5,2534.3,1.61575389]
[1729800684457,0.06755549,2534.5,2534.2,5.56176389]
[1729800685672,0.06755549,2534.5,2534.3,1.61575389]
[1729800686035,3.94532,2534.7,2534.4,0.7929]
[1729800686239,3.94524,2534.7,2534.4,0.7929]
[1729800686463,3.94521,2534.8,2534.4,2.40865389]
[1729800686640,3.94524,2534.7,2534.4,2.40865389]
[1729800687672,3.94524,2534.7,2534.4,0.7929]
[1729800687972,0.06298022,2534.6,2534.4,0.7929]
[1729800688682,0.06298022,2534.6,2534.5,1.61575389]
[1729800688845,3.94503,2534.9,2534.5,2.25119728]
[1729800689179,0.06331315,2534.6,2534.5,6.19663728]
[1729800689341,3.94503,2534.9,2534.5,6.19663728]
[1729800689535,0.06115976,2534.6,2534.5,6.19663728]
[1729800689754,3.94503,2534.9,2534.5,4.58088339]
[1729800689948,0.06115976,2534.6,2534.5,4.58088339]
[1729800690243,0.06115976,2534.6,2534.5,0.63544339]
[1729800690577,3.94527,2534.7,2534.4,0.7929]
[1729800690760,0.06110854,2534.6,2534.4,0.7929]
[1729800691168,0.06110854,2534.6,2534.4,2.40865389]
[1729800691476,0.06103965,2534.5,2534.4,6.35432389]
[1729800691685,3.94509,2534.8,2534.4,6.35432389]
[1729800691846,0.06103965,2534.5,2534.4,6.35432389]
[1729800692046,3.94509,2534.8,2534.4,7.38433328]
[1729800692283,0.06106525,2534.5,2534.4,7.38433328]
[1729800692474,3.94509,2534.8,2534.4,7.38433328]
[1729800692675,0.06106525,2534.5,2534.4,7.38433328]
[1729800692888,3.94495,2534.9,2534.5,3.94553]
[1729800694073,3.94495,2534.9,2534.6,1.61575389]
[1729800694395,3.94495,2534.9,2534.5,5.56128389]
[1729800695072,0.0613951,2534.8,2534.5,5.56128389]
[1729800695274,0.0613951,2534.8,2534.6,1.61575389]
[1729800695667,0.0613951,2534.8,2534.5,6.449937]
[1729800696021,3.9448,2535.0,2534.6,3.94537]
[1729800696197,0.06134208,2534.7,2534.6,3.94537]
[1729800696562,7.88968,2535.0,2534.6,1.61575389]
[1729800696757,0.06134208,2534.7,2534.5,5.56121389]
[1729800696959,3.94492,2534.9,2534.6,1.02998039]
[1729800697301,3.94492,2534.9,2534.5,5.56121389]
[1729800698807,0.06136789,2534.8,2534.5,5.56121389]
[1729800700828,0.06136789,2534.8,2534.5,3.94546]
[1729800701180,4.00645789,2534.8,2534.4,6.35433389]
[1729800703720,3.11816627,2534.8,2534.4,6.35433389]
[1729800703925,0.0573743,2534.7,2534.4,6.35433389]
[1729800704124,3.11816627,2534.8,2534.4,7.38435528]
[1729800704321,0.0573054,2534.6,2534.4,11.32998528]
[1729800704508,3.11816627,2534.8,2534.4,7.38430528]
[1729800704821,5.56052389,2535.0,2534.4,7.38430528]
[1729800704822,0.0572365,2534.5,2534.4,7.38430528]
[1729800705728,3.94502,2534.9,2534.4,7.38430528]
[1729800705928,0.0572365,2534.5,2534.4,6.35428389]
[1729800706221,3.94502,2534.9,2534.4,6.35428389]
[1729800706425,0.05726211,2534.5,2534.4,6.35428389]
[1729800706612,3.94502,2534.9,2534.4,6.35428389]
[1729800707125,0.05746879,2534.8,2534.4,6.35428389]
[1729800707286,0.05746879,2534.8,2534.4,7.38429528]
[1729800708593,0.05746879,2534.8,2534.5,5.56117389]
[1729800709125,0.05741977,2534.7,2534.5,3.94542]
[1729800709330,3.94497,2534.9,2534.5,3.94542]
[1729800709530,0.05735088,2534.6,2534.5,5.56117389]
[1729800709732,3.94497,2534.9,2534.5,6.449825]
[1729800709929,3.9448,2535.0,2534.6,3.94538]
[1729800710233,3.94484,2535.0,2534.6,3.94538]
[1729800710632,5.56040389,2535.1,2534.7,3.94523]
[1729800710809,3.94465,2535.1,2534.7,5.56098389]
[1729800711138,3.94465,2535.1,2534.7,4.72843]
[1729800711520,3.94465,2535.1,2534.7,6.34418389]
[1729800711897,3.94465,2535.1,2534.7,4.72843]
[1729800713308,0.05702516,2535.0,2534.7,4.72843]
[1729800713532,4.00180516,2535.0,2534.7,0.7832]
[1729800714800,0.05702516,2535.0,2534.7,0.7832]
[1729800715000,0.05702516,2535.0,2534.7,4.72841]
[1729800715419,3.94472,2535.1,2534.7,4.72841]
[1729800715631,0.05693068,2534.9,2534.7,4.72841]
[1729800715940,0.05686179,2534.8,2534.7,4.72841]
[1729800716306,3.94472,2535.1,2534.7,4.72841]
[1729800716500,0.05699955,2535.0,2534.7,4.72841]
[1729800720634,0.05699955,2535.0,2534.7,0.7832]
[1729800720635,5.61753344,2535.0,2534.7,0.7832]
[1729800720836,4.95800489,2535.0,2534.7,0.7832]
[1729800721148,0.05699955,2535.0,2534.7,0.7832]
[1729800721955,0.05699955,2535.0,2534.7,4.72843]
[1729800722244,0.05699955,2535.0,2534.7,0.7832]
[1729800723355,4.00183955,2535.0,2534.7,0.7832]
[1729800725735,0.05699955,2535.0,2534.7,4.72843]
[1729800726154,4.00177955,2535.0,2534.7,0.7832]
[1729800726655,0.05699955,2535.0,2534.7,4.72842]
[1729800727159,4.00178955,2535.0,2534.7,0.7832]
[1729800727713,4.00178955,2535.0,2534.3,0.82460427]
[1729800727714,5.56088389,2534.8,2534.3,0.82460427]
[1729800727919,3.94556,2534.5,2534.1,4.77076427]
[1729800728228,0.05405186,2534.4,2534.1,3.94616]
[1729800728617,0.05405186,2534.4,2534.1,5.56181389]
[1729800728816,0.05405186,2534.4,2534.2,3.946]
[1729800729019,3.94552,2534.6,2534.2,3.946]
[1729800729218,10.0110399,2540.5,2534.2,5.82157182]
[1729800729219,0.05400278,2534.3,2534.2,5.82157182]
[1729800729439,3.94523,2534.8,2534.3,3.94575]
[1729800729639,3.94523,2534.8,2534.2,6.64615609]
[1729800729640,3.9454,2534.6,2534.2,6.64615609]
[1729800729861,3.99798064,2534.7,2534.2,8.26190998]
[1729800730029,0.05252284,2534.5,2534.3,4.97074881]
[1729800730229,0.05259174,2534.6,2534.3,3.94585]
[1729800730451,0.05245393,2534.4,2534.3,3.94585]
[1729800730654,3.94532,2534.7,2534.3,4.97081605]
[1729800730969,3.94532,2534.7,2534.3,3.94585]
[1729800731145,0.05246368,2534.6,2534.3,3.94585]
[1729800731346,0.05246368,2534.6,2534.3,3.94575]
[1729800731571,5.56095389,2534.8,2534.3,3.94575]
[1729800731772,0.05239477,2534.5,2534.2,7.15236816]
[1729800732073,3.94533,2534.7,2534.3,4.97098779]
[1729800732230,1.61575389,2534.8,2534.3,3.94586]
[1729800732431,0.05075359,2534.6,2534.4,3.9457]
[1729800732672,0.05082249,2534.7,2534.4,3.9457]
[1729800732836,0.05068468,2534.5,2534.3,3.94584]
[1729800733035,3.94511,2534.8,2534.3,3.94584]
[1729800733252,0.05061577,2534.4,2534.3,3.94584]
[1729800733438,3.94511,2534.8,2534.4,3.94569]
[1729800733662,3.94511,2534.8,2534.4,5.56144389]
[1729800735557,3.94482,2535.0,2534.6,5.56114389]
[1729800735773,0.05057633,2534.7,2534.6,7.8907]
[1729800735989,3.94482,2535.0,2534.6,3.94531]
[1729800736472,0.05115321,2534.9,2534.6,3.94531]
[1729800738845,0.05115321,2534.9,2534.7,1.61575389]
[1729800739043,0.05115321,2534.9,2534.7,5.56089389]
[1729800739250,7.88917,2535.2,2534.7,5.56089389]
[1729800739498,0.05121235,2534.8,2534.7,3.94514]
[1729800739701,7.88917,2535.2,2534.7,5.56089389]
[1729800739982,7.88917,2535.2,2534.7,3.94514]
[1729800740270,7.88917,2535.2,2534.7,5.56089389]
[1729800740271,3.99599777,2535.1,2534.7,5.56089389]
[1729800740594,3.99599777,2535.1,2534.7,6.67178071]
[1729800741376,0.05136777,2535.1,2534.8,4.74113]
[1729800741682,0.05136777,2535.1,2535.0,1.61575389]
[1729800741984,3.94421,2535.4,2535.0,4.74087]
[1729800742137,0.05136576,2535.1,2535.0,4.74087]
[1729800742337,3.94421,2535.4,2535.0,4.74087]
[1729800742534,0.04982022,2535.3,2535.0,0.7961]
[1729800742772,3.99413022,2535.3,2535.0,0.7961]
[1729800742952,0.04982022,2535.3,2535.0,4.74085]
[1729800743287,0.04982022,2535.3,2535.0,2.41185389]
[1729800743614,3.99415022,2535.3,2535.0,2.41185389]
[1729800743737,3.99415022,2535.3,2535.0,0.7961]
[1729800749456,3.94448,2535.2,2534.8,6.31480389]
[1729800749761,0.05001755,2535.1,2534.8,6.31480389]
[1729800749963,0.05001755,2535.1,2534.8,7.12257957]
[1729800750989,0.05001755,2535.1,2534.6,0.7539]
[1729800750990,1.61575389,2535.0,2534.6,0.7539]
[1729800751198,1.61575389,2535.0,2534.6,1.78016605]
[1729800751199,3.94493,2534.9,2534.6,1.78016605]
[1729800751351,1.66562176,2534.9,2534.4,5.52418427]
[1729800751554,3.99482787,2534.9,2534.5,4.97185221]
[1729800751780,3.99482787,2534.9,2534.5,3.94553]
[1729800751975,0.04986787,2534.9,2534.5,5.56130389]
[1729800752459,0.04986787,2534.9,2534.6,3.94538]
[1729800753798,0.04986787,2534.9,2534.7,1.61575389]
[1729800754000,0.04986787,2534.9,2534.6,5.56113389]
[1729800754207,0.04986787,2534.9,2534.6,6.40911532]
[1729800754895,0.04986787,2534.9,2534.7,3.94523]
[1729800755210,7.88936,2535.1,2534.7,3.94523]
[1729800755409,0.04805093,2534.8,2534.7,3.94523]
[1729800755575,7.88936,2535.1,2534.7,3.94523]
[1729800755781,0.04818869,2535.0,2534.7,3.94523]
[1729800756101,3.99305869,2535.0,2534.6,0.84798143]
[1729800756329,3.94498,2534.9,2534.5,9.50675389]
[1729800756536,0.04807865,2534.8,2534.6,3.94532]
[1729800756738,0.04807865,2534.8,2534.6,5.56107389]
[1729800756911,3.9448,2535.0,2534.6,5.56107389]
[1729800757419,0.04806797,2534.9,2534.7,4.89588539]
[1729800757633,0.04806797,2534.9,2534.7,0.95065539]
[1729800757834,3.94479,2535.0,2534.5,5.56123389]
[1729800758040,0.04797136,2534.8,2534.5,7.89096]
[1729800758330,3.99302024,2534.9,2534.5,7.89096]
[1729800758536,0.04790247,2534.7,2534.4,5.52414427]
[1729800758835,0.04799086,2534.6,2534.4,0.7539]
[1729800759833,0.04799086,2534.6,2534.4,4.69958]
[1729800760245,0.04799086,2534.6,2534.3,5.56149389]
[1729800760246,5.56100389,2534.7,2534.2,5.56178427]
[1729800760428,3.94546,2534.6,2534.2,4.73718]
[1729800760630,3.99343494,2534.6,2534.2,4.73718]
[1729800761009,3.99343494,2534.6,2534.2,6.35293389]
[1729800762132,3.99343494,2534.6,2534.2,4.73718]
[1729800762343,3.99343494,2534.6,2534.2,6.35293389]
[1729800762842,0.04797494,2534.6,2534.3,5.56160389]
[1729800764345,0.04797494,2534.6,2534.4,3.9457]
[1729800764653,3.94508,2534.8,2534.4,3.9457]
[1729800764856,3.94494,2534.9,2534.5,3.94554]
[1729800765063,0.04716477,2534.7,2534.5,3.94554]
[1729800765251,7.88995,2534.9,2534.5,3.94554]
[1729800765450,0.04726622,2534.6,2534.5,3.94554]
[1729800765646,3.94511,2534.8,2534.4,5.56142389]
[1729800765824,0.04726622,2534.6,2534.5,3.94555]
[1729800766019,3.94494,2534.9,2534.5,4.73675]
[1729800766365,7.88995,2534.9,2534.5,0.7912]
[1729800766661,0.04728067,2534.8,2534.5,0.7912]
[1729800768064,0.04728067,2534.8,2534.6,1.61575389]
[1729800768229,0.04728067,2534.8,2534.5,6.35246389]
[1729800768562,0.04721178,2534.7,2534.5,7.46291375]
[1729800768870,3.94493,2534.9,2534.5,7.46287375]
[1729800769321,0.04728067,2534.8,2534.5,7.46287375]
[1729800769527,0.04728067,2534.8,2534.5,5.84711986]
[1729800770561,0.04728067,2534.8,2534.5,7.46287375]
[1729800771166,0.04728067,2534.8,2534.5,5.84711986]
[1729800771332,0.04728067,2534.8,2534.5,7.46287375]
[1729800771533,0.04728067,2534.8,2534.5,5.84711986]
[1729800771960,0.04728067,2534.8,2534.6,3.94536]
[1729800772269,3.94489,2535.0,2534.5,5.84711986]
[1729800772270,3.94495,2534.9,2534.5,5.84711986]
[1729800772453,0.04686221,2534.7,2534.5,5.84711986]
[1729800772762,0.04681078,2534.6,2534.5,5.84711986]
[1729800773058,3.94495,2534.9,2534.5,5.84711986]
[1729800773266,0.04684574,2534.6,2534.5,4.73667]
[1729800773469,3.94495,2534.9,2534.5,4.73667]
[1729800773624,0.04686323,2534.6,2534.5,4.73667]
[1729800773829,3.94495,2534.9,2534.5,4.73667]
[1729800774028,0.04688071,2534.6,2534.5,4.73667]
[1729800774267,3.94495,2534.9,2534.5,5.76648439]
[1729800774566,3.94495,2534.9,2534.5,4.73667]
[1729800774741,0.04645428,2534.8,2534.5,4.73667]
[1729800782712,3.99155428,2534.8,2534.4,3.94567]
[1729800782865,3.93350784,2534.8,2534.4,3.94567]
[1729800783070,0.04506276,2534.7,2534.5,3.94553]
[1729800783603,0.04344539,2534.6,2534.5,3.94553]
[1729800783777,3.94496,2534.9,2534.5,3.94553]
[1729800783979,0.04358317,2534.8,2534.5,3.94553]
[1729800787874,3.98875317,2534.8,2534.4,3.94567]
[1729800788904,3.98875317,2534.8,2534.4,7.89129]
[1729800789108,0.04358317,2534.8,2534.4,3.94562]
[1729800789412,3.945,2534.9,2534.5,3.94553]
[1729800789616,0.04182509,2534.7,2534.5,3.94553]
[1729800789810,3.945,2534.9,2534.5,3.94553]
[1729800789970,0.04175619,2534.6,2534.4,3.94562]
[1729800790174,3.94531,2534.7,2534.4,1.10908082]
[1729800790477,0.04175619,2534.6,2534.3,0.7589]
[1729800790892,0.04175619,2534.6,2534.3,6.32050389]
[1729800791093,0.04175619,2534.6,2534.3,4.70475]
[1729800791578,3.98714619,2534.6,2534.3,0.7589]
[1729800792078,0.04175619,2534.6,2534.3,4.70466]
[1729800793298,3.98714619,2534.6,2534.3,0.7589]
[1729800793500,0.04175619,2534.6,2534.3,4.70474]
[1729800796614,0.04175619,2534.6,2534.4,4.97282897]
[1729800796781,3.9451,2534.8,2534.4,3.94568]
[1729800796976,0.04022343,2534.7,2534.4,1.61575389]
[1729800797182,3.9449,2535.0,2534.6,4.77089]
[1729800797425,3.9449,2535.0,2534.6,0.8255]
[1729800797426,3.98531122,2534.9,2534.6,0.8255]
[1729800797799,0.04036122,2534.9,2534.8,6.38633389]
[1729800798105,3.94395,2535.6,2535.1,4.77002]
[1729800798291,3.94395,2535.6,2535.2,1.61575389]
[1729800799096,3.944,2535.5,2535.2,1.61575389]
[1729800799314,3.944,2535.5,2535.1,2.44125389]
[1729800799724,3.94421,2535.4,2535.1,0.8255]
[1729800801603,1.61575389,2535.6,2535.1,0.8255]
[1729800801912,3.94402,2535.5,2535.1,0.8255]
[1729800806544,3.0,2536.2,2535.4,2.39995389]
[1729800806704,3.94353,2535.8,2535.4,2.39995389]
[1729800807038,3.94353,2535.8,2535.4,0.7842]
[1729800807823,7.88715,2535.8,2535.4,0.7842]
[1729800809263,3.94376,2535.7,2535.4,0.7842]
[1729800809641,3.94388,2535.6,2535.4,0.7842]
[1729800811171,3.94388,2535.6,2535.1,4.72459]
[1729800814173,3.94433,2535.3,2535.1,0.78]
[1729800814334,3.94433,2535.3,2534.9,0.7601]
[1729800814335,7.88876,2535.3,2534.9,0.7601]
[1729800814667,3.94448,2535.2,2534.9,0.7601]
[1729800816081,3.94433,2535.3,2534.9,4.70502]
[1729800817077,7.88875,2535.3,2534.9,0.7601]
[1729800817285,3.94462,2535.1,2534.7,0.7601]
[1729800817441,3.94462,2535.1,2534.7,4.70531]
[1729800817853,3.94462,2535.1,2534.7,6.32106389]
[1729800818053,3.94462,2535.1,2534.7,4.70531]
[1729800819184,3.94456,2535.2,2534.8,1.61575389]
[1729800819785,3.94456,2535.2,2534.7,6.32106389]
[1729800820212,3.94456,2535.2,2534.8,1.61575389]
[1729800820373,3.94456,2535.2,2534.8,5.56083389]
[1729800820797,3.94456,2535.2,2534.8,3.94508]
[1729800821913,3.94456,2535.2,2534.8,5.56083389]
[1729800822409,3.94456,2535.2,2534.8,3.94508]
[1729800822716,3.94456,2535.2,2534.8,5.56083389]
[1729800823413,3.94456,2535.2,2534.8,3.94508]
[1729800824820,3.94456,2535.2,2534.8,5.56083389]
[1729800826014,3.94456,2535.2,2534.8,3.94508]
[1729800827710,3.94462,2535.1,2534.7,6.32107389]
[1729800828283,3.94449,2535.2,2534.7,6.32107389]
[1729800828618,3.94449,2535.2,2534.8,3.94502]
[1729800828921,3.94449,2535.2,2534.8,5.56077389]
[1729800829115,3.94433,2535.3,2534.8,5.56077389]
[1729800829313,3.94433,2535.3,2534.9,3.9449]
[1729800831016,3.94433,2535.3,2534.8,1.61575389]
[1729800832034,3.94433,2535.3,2534.7,2.37585389]
[1729800832239,3.94433,2535.3,2534.7,2.80659902]
[1729800832488,3.94433,2535.3,2534.8,1.61575389]
[1729800833506,3.94417,2535.4,2534.9,1.61575389]
[1729800833832,3.94417,2535.4,2534.8,2.37055389]
[1729800834119,3.94417,2535.4,2534.8,2.44944508]
[1729800834314,3.94417,2535.4,2534.9,0.39052904]
[1729800835020,3.94431,2535.3,2534.9,4.33544904]
[1729800835243,5.55992389,2535.4,2534.9,4.33544904]
[1729800835401,3.94417,2535.4,2534.9,4.33544904]
[1729800835605,5.55992389,2535.4,2534.9,4.33544904]
[1729800836702,9.50417389,2535.4,2534.9,4.33544904]
[1729800837941,7.88845,2535.4,2534.9,4.33544904]
[1729800838343,7.88845,2535.4,2534.9,0.39052904]
[1729800838752,3.9444,2535.3,2534.9,0.39052904]
[1729800840037,5.56015389,2535.3,2534.9,0.39052904]
[1729800840952,3.9444,2535.3,2534.9,0.39052904]
[1729800841153,3.9444,2535.3,2535.0,0.22501929]
[1729800841455,3.9444,2535.3,2534.9,0.39052904]
[1729800841626,3.94448,2535.2,2534.9,0.39052904]
[1729800841824,3.94448,2535.2,2534.8,0.7548]
[1729800842017,3.94434,2535.3,2534.8,0.7548]
[1729800842212,5.56009389,2535.3,2534.8,0.7548]
[1729800842411,1.61575389,2535.3,2534.8,0.7548]
[1729800842659,5.56009389,2535.3,2534.8,0.7548]
[1729800842840,5.56009389,2535.3,2534.8,2.03044949]
[1729800846639,1.61575389,2535.0,2534.8,2.03044949]
[1729800847916,1.61575389,2534.9,2534.8,0.7548]
[1729800851446,1.61575389,2534.9,2534.7,1.02669975]
[1729800851653,1.61575389,2534.8,2534.3,0.7694]
[1729800851956,1.61575389,2534.4,2534.3,0.7694]
[1729800852163,1.61575389,2534.4,2534.3,1.79629129]
[1729800854043,1.61575389,2534.4,2534.3,1.79581131]
[1729800854363,1.61575389,2534.4,2534.3,0.7694]
[1729800855921,1.61575389,2534.4,2534.3,1.79552177]
[1729800856125,1.61575389,2534.5,2534.3,0.7694]
[1729800856566,1.61575389,2534.4,2534.3,0.7694]
[1729800861043,0.72745043,2534.4,2534.3,0.7694]
[1729800869477,0.72745043,2534.4,2534.1,0.801]
[1729800869790,1.61575389,2534.2,2534.1,0.801]
[1729800874608,1.61575389,2534.2,2533.9,0.7597]
[1729800874806,1.61575389,2534.2,2533.9,1.53930761]
[1729800876175,1.61575389,2534.3,2533.9,1.53930761]
[1729800876417,1.61575389,2534.3,2533.9,2.56438781]
[1729800878071,1.61575389,2534.3,2533.9,2.5642183]
[1729800879223,0.61774232,2535.1,2534.2,0.8184]
[1729800879369,1.61575389,2534.5,2534.3,0.24341539]
[1729800879574,1.61575389,2534.4,2534.2,0.8184]
[1729800890023,1.61575389,2534.3,2534.1,1.02549507]
[1729800890202,1.61575389,2534.2,2534.0,0.7597]
[1729800891228,1.61575389,2534.2,2534.1,1.02608905]
[1729800891639,1.61575389,2534.2,2534.0,0.7597]
[1729800892136,1.61575389,2534.2,2534.0,1.78579456]
[1729800892341,1.61575389,2534.2,2534.0,0.7597]
[1729800893927,1.61575389,2534.2,2534.1,1.02649859]
[1729800896605,5.56176389,2534.2,2533.9,0.82759946]
[1729800896807,1.61575389,2534.0,2533.8,0.82759946]
[1729800897127,1.61575389,2533.9,2533.7,0.82759946]
[1729800897328,3.94634,2534.0,2533.8,1.02732199]